bitfinex/quotes_SOLUSD_20240603
["timestamp","ask_amount","ask_price","bid_price","bid_amount"]
[1717378523711,2.2459,164.74,164.68,6.083]
[1717378524404,2.2458,164.75,164.68,6.083]
[1717378524603,2.2458,164.75,164.68,42.563]
[1717378524811,2.2456,164.76,164.68,42.563]
[1717378525504,2.2457,164.76,164.68,42.563]
[1717378525697,2.2456,164.77,164.68,42.563]
[1717378526187,2.2456,164.76,164.68,42.563]
[1717378526801,6.1522,164.79,164.66,6.083]
[1717378526983,2.2462,164.72,164.66,6.083]
[1717378527400,2.246,164.74,164.66,6.083]
[1717378527913,2.2462,164.72,164.65,42.563]
[1717378528102,8.9829,164.76,164.65,6.083]
[1717378528284,0.34,164.75,164.65,6.083]
[1717378529036,2.2464,164.71,164.63,6.083]
[1717378529306,2.2464,164.71,164.65,6.083]
[1717378529902,2.2462,164.72,164.65,6.083]
[1717378530104,6.6524,164.73,164.63,6.083]
[1717378530404,6.6524,164.73,164.65,6.083]
[1717378530613,2.2466,164.7,164.65,6.083]
[1717378531623,2.2466,164.7,164.64,30.0]
[1717378531790,2.2466,164.7,164.63,6.083]
[1717378533119,6.6524,164.73,164.63,6.083]
[1717378533300,16.4519,164.71,164.61,36.48]
[1717378533613,6.6524,164.73,164.64,36.48]
[1717378533988,2.2463,164.71,164.61,3.07636548]
[1717378534194,2.2463,164.71,164.63,6.083]
[1717378534500,2.2463,164.71,164.63,42.563]
[1717378534704,2.2465,164.7,164.63,42.563]
[1717378535506,2.2463,164.71,164.63,42.563]
[1717378535716,18.6155,164.75,164.67,42.563]
[1717378535911,6.3796,164.77,164.67,42.563]
[1717378535912,2.2457,164.76,164.67,42.563]
[1717378537009,6.3796,164.77,164.67,42.563]
[1717378537010,2.2458,164.75,164.67,42.563]
[1717378537812,15.7402,164.79,164.7,42.563]
[1717378538020,15.7402,164.79,164.7,102.563]
[1717378538200,2.2454,164.78,164.7,42.563]
[1717378538718,2.2455,164.77,164.7,42.563]
[1717378538919,2.2455,164.77,164.7,102.563]
[1717378539218,2.2454,164.78,164.7,102.563]
[1717378539611,2.2452,164.8,164.7,102.563]
[1717378539801,2.2452,164.8,164.71,0.34]
[1717378540792,2.2453,164.79,164.71,0.34]
[1717378541209,2.2454,164.78,164.72,6.083]
[1717378541418,2.2454,164.78,164.72,42.563]
[1717378542112,2.2452,164.79,164.72,42.563]
[1717378542299,2.2452,164.79,164.72,72.563]
[1717378542735,2.2452,164.79,164.72,132.563]
[1717378543015,8.5753,164.81,164.72,132.563]
[1717378543515,8.5753,164.81,164.72,30.0]
[1717378543516,2.2456,164.77,164.72,30.0]
[1717378543816,2.2461,164.73,164.68,39.55636548]
[1717378544036,6.051,164.76,164.66,36.48]
[1717378544201,2.2461,164.73,164.67,42.563]
[1717378544802,2.2459,164.74,164.67,42.563]
[1717378545107,6.051,164.76,164.67,42.563]
[1717378545418,2.2461,164.73,164.67,42.563]
[1717378545926,2.2459,164.74,164.67,42.563]
[1717378547621,10.5425,164.76,164.67,6.083]
[1717378547840,10.5425,164.76,164.64,42.563]
[1717378548022,2.2466,164.7,164.64,42.563]
[1717378548726,2.2463,164.71,164.64,42.563]
[1717378549057,2.2462,164.72,164.64,42.563]
[1717378549326,2.246,164.74,164.64,42.563]
[1717378549507,2.2461,164.73,164.66,36.48]
[1717378550126,6.051,164.76,164.67,6.083]
[1717378550127,2.2459,164.74,164.67,6.083]
[1717378550328,2.2459,164.74,164.67,42.563]
[1717378550517,2.2461,164.73,164.67,42.563]
[1717378550914,2.2459,164.74,164.67,42.563]
[1717378551918,2.2461,164.73,164.67,42.563]
[1717378552719,2.2459,164.74,164.67,102.563]
[1717378553628,2.2461,164.73,164.67,102.563]
[1717378554024,2.2462,164.72,164.67,102.563]
[1717378554220,2.2461,164.73,164.67,102.563]
[1717378556137,4.491,164.78,164.7,36.48]
[1717378556327,2.2457,164.76,164.7,42.563]
[1717378556523,6.4401,164.8,164.7,42.563]
[1717378556832,6.4401,164.8,164.71,0.34]
[1717378557034,2.2455,164.78,164.71,0.34]
[1717378557423,2.2455,164.77,164.7,42.563]
[1717378557623,2.2457,164.76,164.7,42.563]
[1717378558443,2.2459,164.74,164.7,6.083]
[1717378558643,2.2458,164.75,164.7,6.083]
[1717378558950,2.2459,164.74,164.66,36.48]
[1717378559128,2.2459,164.74,164.69,6.073]
[1717378559735,8.9823,164.77,164.69,6.073]
[1717378559931,2.2462,164.72,164.68,36.48]
[1717378560131,2.2462,164.72,164.67,42.553]
[1717378560642,2.2461,164.73,164.67,42.553]
[1717378560843,4.4915,164.76,164.67,42.553]
[1717378561147,2.2462,164.73,164.67,42.553]
[1717378561346,2.2464,164.71,164.65,6.073]
[1717378561531,2.2464,164.71,164.65,42.513]
[1717378561937,6.4401,164.8,164.63,63.07636548]
[1717378561938,8.9812,164.79,164.68,36.44]
[1717378562138,2.2457,164.76,164.68,36.44]
[1717378562546,2.2459,164.75,164.68,36.44]
[1717378562751,4.4911,164.77,164.68,36.44]
[1717378562947,2.2461,164.73,164.68,36.44]
[1717378563149,6.7363,164.78,164.67,42.513]
[1717378563358,6.7363,164.78,164.63,68.86458999]
[1717378563359,2.2465,164.7,164.65,36.44]
[1717378563562,2.2465,164.7,164.65,42.513]
[1717378563732,2.2464,164.71,164.65,42.513]
[1717378564064,2.2462,164.72,164.65,42.513]
[1717378564264,2.2462,164.72,164.65,102.513]
[1717378564443,2.246,164.74,164.65,102.513]
[1717378564644,2.2461,164.73,164.66,0.17]
[1717378565040,2.246,164.74,164.66,0.17]
[1717378565250,2.246,164.74,164.68,6.073]
[1717378566149,2.2461,164.73,164.68,6.073]
[1717378566348,2.246,164.74,164.68,42.513]
[1717378566546,2.2458,164.75,164.68,42.513]
[1717378567057,6.4401,164.8,164.68,42.513]
[1717378567240,2.2454,164.78,164.7,42.513]
[1717378567439,2.2455,164.77,164.7,42.513]
[1717378567643,6.4401,164.8,164.7,42.513]
[1717378567644,2.2457,164.76,164.7,42.513]
[1717378567844,2.2458,164.75,164.7,42.513]
[1717378569263,2.2457,164.76,164.7,42.513]
[1717378570056,2.2456,164.77,164.7,42.513]
[1717378570441,2.2457,164.76,164.7,42.513]
[1717378571058,2.2458,164.75,164.7,42.513]
[1717378571585,23.6805,164.8,164.69,36.44]
[1717378571860,6.4401,164.8,164.69,42.513]
[1717378572057,2.2456,164.77,164.69,42.513]
[1717378572272,2.2456,164.76,164.69,42.513]
[1717378573270,2.2458,164.75,164.69,42.513]
[1717378573465,4.4905,164.79,164.69,42.513]
[1717378574145,2.2457,164.76,164.69,42.513]
[1717378574346,6.4401,164.8,164.69,42.513]
[1717378574668,2.2455,164.77,164.71,36.44]
[1717378576475,2.2455,164.77,164.7,36.44]
[1717378576867,2.2454,164.78,164.7,36.44]
[1717378578065,2.2454,164.78,164.7,96.44]
[1717378578263,2.2453,164.79,164.71,42.683]
[1717378578460,19.6528,164.82,164.72,102.513]
[1717378578461,2.2449,164.82,164.72,102.513]
[1717378579174,2.245,164.81,164.72,102.513]
[1717378579376,2.245,164.81,164.72,105.58936548]
[1717378579570,2.245,164.81,164.73,0.34]
[1717378580556,2.2451,164.8,164.73,0.34]
[1717378580770,2.245,164.81,164.73,0.34]
[1717378581286,2.2451,164.8,164.73,0.34]
[1717378581792,2.245,164.81,164.73,0.34]
[1717378583254,2.2452,164.8,164.72,42.513]
[1717378583983,2.2452,164.8,164.72,102.513]
[1717378584191,2.245,164.81,164.72,102.513]
[1717378585293,2.2451,164.8,164.72,102.513]
[1717378585797,2.2451,164.8,164.72,42.513]
[1717378586367,2.2456,164.77,164.7,36.44]
[1717378586566,2.2459,164.75,164.7,36.44]
[1717378586875,4.4906,164.79,164.66,12.75]
[1717378586876,16.1059,164.79,164.66,12.75]
[1717378587067,4.4911,164.77,164.66,12.75]
[1717378587387,2.2463,164.72,164.65,42.513]
[1717378587603,2.2462,164.72,164.65,42.513]
[1717378588379,2.2462,164.72,164.65,36.44]
[1717378588581,2.2462,164.72,164.65,42.513]
[1717378589182,2.2461,164.73,164.65,42.513]
[1717378589995,2.2461,164.73,164.66,42.513]
[1717378590478,2.2463,164.71,164.66,36.44]
[1717378591183,2.2463,164.71,164.65,42.513]
[1717378591387,2.2465,164.7,164.64,6.073]
[1717378592512,2.2465,164.7,164.63,6.073]
[1717378592676,4.4917,164.75,164.63,42.513]
[1717378592677,2.2463,164.71,164.63,42.513]
[1717378592999,4.4917,164.75,164.63,42.513]
[1717378593000,2.2462,164.72,164.63,42.513]
[1717378593795,4.4919,164.74,164.63,36.44]
[1717378594003,2.2465,164.7,164.63,36.44]
[1717378594207,2.2465,164.7,164.61,36.44]
[1717378594809,2.2465,164.7,164.62,6.073]
[1717378595790,4.4928,164.71,164.62,6.073]
[1717378596194,2.2468,164.68,164.62,6.073]
[1717378596511,2.2469,164.67,164.6,42.513]
[1717378597014,2.2468,164.68,164.6,42.513]
[1717378598203,6.3546,164.69,164.59,6.073]
[1717378598204,2.2469,164.67,164.59,6.073]
[1717378599004,2.2469,164.67,164.59,42.513]
[1717378600016,2.2468,164.68,164.59,42.513]
[1717378600188,2.2468,164.68,164.59,102.513]
[1717378600501,8.6012,164.69,164.59,102.513]
[1717378600884,2.2467,164.68,164.59,102.513]
[1717378601087,2.2467,164.68,164.59,42.513]
[1717378604883,2.2469,164.67,164.59,42.513]
[1717378607285,2.247,164.66,164.59,42.513]
[1717378607713,2.2469,164.67,164.59,42.513]
[1717378607931,2.2469,164.67,164.62,4.25]
[1717378608097,8.6721,164.67,164.62,4.25]
[1717378608607,22.6226,164.71,164.64,4.25]
[1717378608909,22.6226,164.71,164.68,4.25]
[1717378608910,6.4252,164.71,164.68,4.25]
[1717378609318,8.6715,164.71,164.67,4.25]
[1717378610822,8.6715,164.71,164.64,42.513]
[1717378610995,8.6715,164.71,164.67,4.25]
[1717378611321,4.25,164.69,164.61,36.44]
[1717378611501,2.2468,164.68,164.63,4.25]
[1717378611701,6.4252,164.67,164.63,4.25]
[1717378613925,2.247,164.66,164.59,42.513]
[1717378614105,8.6721,164.67,164.59,42.513]
[1717378616920,6.4252,164.67,164.59,42.513]
[1717378617607,8.6721,164.67,164.59,42.513]
[1717378618410,8.6721,164.67,164.57,12.76]
[1717378618411,15.5716,164.66,164.58,6.073]
[1717378618612,9.3287,164.65,164.54,42.513]
[1717378618916,2.2478,164.61,164.54,42.513]
[1717378619132,2.2476,164.62,164.54,42.513]
[1717378619320,2.2477,164.61,164.54,42.513]
[1717378619818,2.2476,164.62,164.54,42.513]
[1717378620219,2.2474,164.63,164.54,42.513]
[1717378621223,2.2474,164.63,164.55,42.513]
[1717378621399,2.2473,164.64,164.55,102.513]
[1717378621606,2.2472,164.65,164.56,0.17]
[1717378621922,2.2473,164.64,164.56,0.34]
[1717378622118,2.2474,164.63,164.56,0.34]
[1717378622805,2.2474,164.63,164.55,102.513]
[1717378623324,2.2473,164.64,164.56,0.17]
[1717378623527,2.2473,164.64,164.56,0.34]
[1717378623714,17.8187,164.66,164.56,0.34]
[1717378623909,17.8187,164.66,164.58,42.513]
[1717378624113,15.5716,164.66,164.58,42.513]
[1717378624424,17.8186,164.66,164.6,36.44]
[1717378624717,2.247,164.66,164.6,36.44]
[1717378625414,2.2471,164.65,164.58,42.513]
[1717378626415,2.2471,164.66,164.58,102.513]
[1717378626604,8.6721,164.67,164.58,102.513]
[1717378626806,8.6721,164.67,164.59,0.17]
[1717378627114,15.3778,164.7,164.61,42.513]
[1717378627314,2.2466,164.69,164.62,60.0]
[1717378627626,15.3778,164.7,164.64,6.073]
[1717378627627,2.2465,164.7,164.64,6.073]
[1717378627806,8.8195,164.71,164.64,42.513]
[1717378628210,2.2464,164.71,164.65,0.34]
[1717378628413,2.2465,164.7,164.64,42.513]
[1717378629529,2.2466,164.69,164.64,42.513]
[1717378629731,4.4927,164.71,164.63,6.073]
[1717378629919,6.2989,164.65,164.61,6.073]
[1717378630244,2.2475,164.63,164.56,72.76]
[1717378630541,8.5461,164.65,164.58,60.0]
[1717378630744,8.5461,164.65,164.57,36.44]
[1717378630937,8.5461,164.65,164.59,36.44]
[1717378631143,6.2989,164.65,164.59,36.44]
[1717378631310,6.2989,164.65,164.5,60.0]
[1717378631609,2.2481,164.59,164.5,60.0]
[1717378631834,4.4949,164.63,164.51,42.513]
[1717378631835,2.2481,164.58,164.51,42.513]
[1717378632015,4.4949,164.63,164.51,42.513]
[1717378632208,2.2481,164.58,164.51,42.513]
[1717378632416,6.2989,164.57,164.45,4.9082192]
[1717378632635,6.4689,164.57,164.45,4.9082192]
[1717378632812,2.2491,164.51,164.45,4.9082192]
[1717378633014,4.4971,164.55,164.45,41.3482192]
[1717378633531,2.2491,164.51,164.45,36.44]
[1717378634044,2.2485,164.55,164.47,36.44]
[1717378634238,2.2487,164.54,164.47,36.44]
[1717378634750,12.76,164.52,164.37,60.0]
[1717378635214,2.2495,164.48,164.37,60.0]
[1717378635420,12.76,164.52,164.34,19.4257]
[1717378635614,2.2494,164.49,164.4,60.0]
[1717378635920,12.76,164.52,164.42,60.0]
[1717378636817,2.2492,164.5,164.42,60.0]
[1717378637248,2.2492,164.5,164.4,66.073]
[1717378637435,2.2492,164.5,164.41,0.34]
[1717378637731,12.76,164.52,164.43,66.073]
[1717378637732,2.249,164.52,164.43,66.073]
[1717378638128,25.52,164.55,164.43,6.073]
[1717378638315,4.8374,164.54,164.39,6.073]
[1717378638517,12.76,164.52,164.4,0.17]
[1717378638718,0.17,164.51,164.4,6.073]
[1717378638929,2.2495,164.48,164.4,6.073]
[1717378639849,2.2495,164.48,164.39,6.073]
[1717378640026,2.2493,164.49,164.39,6.073]
[1717378640351,2.2493,164.49,164.4,66.073]
[1717378641052,2.2495,164.48,164.38,60.0]
[1717378641338,2.2495,164.48,164.39,0.17]
[1717378641339,8.5048,164.48,164.39,0.17]
[1717378642155,6.2553,164.52,164.44,60.0]
[1717378642454,6.33862793,164.54,164.43,6.073]
[1717378642662,10.7522,164.56,164.4,36.44]
[1717378642663,2.2492,164.5,164.41,6.073]
[1717378642954,2.2497,164.47,164.41,6.073]
[1717378643113,4.4979,164.52,164.36,96.44]
[1717378643114,2.2499,164.46,164.36,96.44]
[1717378643310,22.6977,164.49,164.36,36.44]
[1717378643513,22.6977,164.49,164.35,30.0]
[1717378643514,2.25,164.45,164.35,6.073]
[1717378643734,12.76,164.47,164.35,6.073]
[1717378644134,2.2503,164.43,164.35,6.073]
[1717378644350,2.2506,164.4,164.34,1.40760193]
[1717378644657,2.2508,164.38,164.34,1.40760193]
[1717378644948,12.76,164.41,164.34,1.40760193]
[1717378645123,12.76,164.41,164.3,6.3045]
[1717378645460,12.76,164.41,164.29,0.8130954]
[1717378645620,12.76,164.41,164.3,6.073]
[1717378645818,2.2507,164.39,164.29,103.3260954]
[1717378646019,2.251,164.37,164.29,0.8130954]
[1717378646323,28.6037,164.38,164.29,0.8130954]
[1717378646534,2.2518,164.32,164.29,0.8130954]
[1717378646730,21.8511,164.38,164.29,0.8130954]
[1717378647434,6.5989,164.34,164.29,60.8130954]
[1717378647838,6.5989,164.34,164.29,0.8130954]
[1717378648746,15.2522,164.38,164.31,60.0]
[1717378648747,2.251,164.37,164.31,60.0]
[1717378648919,15.2522,164.36,164.29,0.8130954]
[1717378649117,2.2515,164.34,164.29,0.8130954]
[1717378649319,2.2516,164.33,164.29,0.8130954]
[1717378650054,2.2514,164.34,164.29,0.8130954]
[1717378650423,2.2515,164.33,164.29,0.8130954]
[1717378650736,15.2522,164.36,164.29,0.8130954]
[1717378651148,8.3521,164.34,164.29,0.8130954]
[1717378651531,2.2515,164.33,164.29,0.8130954]
[1717378651722,2.2514,164.34,164.29,0.8130954]
[1717378652347,22.44050103,164.36,164.29,60.8130954]
[1717378652661,2.2513,164.35,164.29,0.8130954]
[1717378653145,8.59329309,164.34,164.29,0.8130954]
[1717378653350,23.2329,164.33,164.29,0.8130954]
[1717378653539,8.8198,164.3,164.29,0.8130954]
[1717378653746,11.36568919,164.3,164.29,0.8130954]
[1717378653932,13.61758919,164.3,164.29,0.8130954]
[1717378654469,13.61758919,164.3,164.17,36.44]
[1717378654470,2.2527,164.25,164.17,36.44]
[1717378654762,2.2527,164.25,164.16,6.1564]
[1717378654930,11.36568919,164.3,164.2,60.0]
[1717378655124,11.36568919,164.3,164.18,60.0]
[1717378655125,2.2523,164.27,164.18,60.0]
[1717378655330,2.2523,164.27,164.2,60.0]
[1717378656227,2.2523,164.27,164.18,60.0]
[1717378656426,2.2523,164.27,164.17,67.48205951]
[1717378657647,2.2523,164.27,164.18,0.17]
[1717378657838,2.2523,164.27,164.2,2.2533]
[1717378658030,2.2522,164.28,164.21,2.2532]
[1717378660133,11.36568919,164.3,164.18,0.34]
[1717378660335,2.2525,164.26,164.19,60.0]
[1717378660542,11.36568919,164.3,164.21,60.0]
[1717378660762,2.2523,164.28,164.21,2.2531]
[1717378660942,2.2523,164.27,164.2,2.4233]
[1717378661259,2.2522,164.29,164.21,60.17]
[1717378661763,2.2522,164.28,164.21,60.17]
[1717378662738,2.2521,164.3,164.24,60.0]
[1717378663255,2.2521,164.3,164.23,2.2529]
[1717378663556,2.2523,164.28,164.22,0.17]
[1717378663762,2.2523,164.28,164.22,62.423]
[1717378663961,2.2521,164.29,164.23,2.4229]
[1717378664959,22.7917,164.34,164.24,2.2527]
[1717378665255,2.2517,164.32,164.25,38.6926]
[1717378665463,2.2517,164.32,164.27,36.44]
[1717378665843,2.2518,164.31,164.27,36.44]
[1717378667062,2.2517,164.32,164.27,36.44]
[1717378667250,2.2518,164.31,164.27,36.44]
[1717378668665,4.17198748,164.34,164.27,36.44]
[1717378668865,2.2518,164.32,164.27,36.44]
[1717378669954,2.2518,164.32,164.27,42.513]
[1717378670158,0.17,164.31,164.17,1.40905951]
[1717378670377,12.82,164.24,164.18,66.44]
[1717378670657,2.2531,164.22,164.18,36.44]
[1717378671074,12.82,164.27,164.18,42.513]
[1717378671244,2.2529,164.24,164.18,42.513]
[1717378671775,2.2529,164.23,164.18,42.513]
[1717378671977,2.2529,164.23,164.18,36.44]
[1717378674048,2.2528,164.24,164.18,36.44]
[1717378675174,2.2529,164.23,164.18,36.44]
[1717378675475,2.2528,164.24,164.18,36.44]
[1717378676667,2.2529,164.23,164.18,36.44]
[1717378676856,2.2529,164.24,164.18,36.44]
[1717378677375,2.2529,164.24,164.13,0.8130954]
[1717378677376,30.4964,164.23,164.13,0.8130954]
[1717378677544,6.76,164.2,164.13,0.8130954]
[1717378677749,4.5071,164.19,164.13,0.8130954]
[1717378677947,4.5072,164.18,164.13,0.8130954]
[1717378678262,21.1133,164.18,164.13,0.8130954]
[1717378678455,2.2541,164.15,164.13,0.8130954]
[1717378678660,2.2541,164.14,164.13,0.8130954]
[1717378680252,2.254,164.16,164.13,0.8130954]
[1717378680472,2.2538,164.17,164.13,0.8130954]
[1717378681053,2.2539,164.16,164.13,0.8130954]
[1717378681956,2.254,164.15,164.13,0.8130954]
[1717378682564,11.2673,164.19,164.13,0.8130954]
[1717378682873,2.2541,164.14,164.13,0.8130954]
[1717378684680,2.254,164.15,164.13,0.8130954]
[1717378685078,2.2538,164.17,164.13,0.8130954]
[1717378685573,2.2539,164.16,164.13,0.8130954]
[1717378685976,2.254,164.15,164.13,0.8130954]
[1717378686555,2.2539,164.16,164.13,0.8130954]
[1717378686750,2.254,164.15,164.13,0.8130954]
[1717378686980,2.2539,164.16,164.13,0.8130954]
[1717378689206,6.5008,164.16,164.13,0.8130954]
[1717378689409,50.5497768,164.14,164.13,0.8130954]
[1717378689681,50.5497768,164.14,164.0,60.0]
[1717378689682,4.5096,164.1,164.0,60.0]
[1717378690087,2.2553,164.06,164.0,60.0]
[1717378690286,2.2553,164.06,163.98,2.2563]
[1717378690287,4.5098,164.09,163.98,60.0]
[1717378690503,2.2555,164.05,163.98,60.0]
[1717378690979,2.2553,164.06,163.98,62.2563]
[1717378691155,2.2553,164.06,163.99,2.2562]
[1717378691355,6.764,164.11,164.0,60.0]
[1717378691593,2.2551,164.07,164.0,60.0]
[1717378691966,2.2552,164.06,164.0,60.0]
[1717378692560,6.764,164.11,164.0,60.0]
[1717378692561,2.2551,164.07,164.0,60.0]
[1717378692876,2.2552,164.06,163.99,2.5961]
[1717378695085,11.2725,164.08,164.02,62.2558]
[1717378695296,11.2725,164.08,164.03,2.5956]
[1717378695786,2.2547,164.1,164.03,2.5956]
[1717378695973,2.2548,164.09,164.03,2.5956]
[1717378696176,2.2548,164.09,164.03,0.34]
[1717378696391,2.255,164.08,164.02,2.2558]
[1717378697961,2.2548,164.09,164.03,2.2556]
[1717378698688,11.2725,164.12,164.06,60.0]
[1717378698992,2.2546,164.11,164.04,60.34]
[1717378699167,2.2546,164.11,164.05,2.2553]
[1717378699362,2.2547,164.1,164.05,36.44]
[1717378699580,2.2546,164.11,164.05,38.6954]
[1717378700280,6.5008,164.14,164.05,36.44]
[1717378700614,2.2546,164.11,164.05,38.6953]
[1717378705470,4.5088,164.13,164.05,36.44]
[1717378705666,2.2549,164.09,164.05,36.44]
[1717378705986,2.255,164.08,164.03,36.44]
[1717378706183,6.5008,164.14,164.03,36.44]
[1717378706364,2.2553,164.06,164.03,36.44]
[1717378706565,2.2553,164.06,164.0,38.696]
[1717378706802,2.2553,164.06,164.01,2.2559]
[1717378707293,2.2552,164.06,164.01,2.2559]
[1717378708076,0.34,164.13,164.0,36.44]
[1717378708383,4.5097,164.09,164.0,38.6959]
[1717378708591,2.2553,164.06,164.01,2.2559]
[1717378708764,2.2551,164.07,164.01,2.2559]
[1717378708970,2.2551,164.07,163.97,10.5857]
[1717378709168,21.826,164.0,163.96,0.8130954]
[1717378709377,2.2565,163.97,163.96,0.8130954]
[1717378710188,2.2563,163.98,163.96,0.8130954]
[1717378712368,2.2565,163.97,163.96,0.8130954]
[1717378712899,2.2563,163.99,163.96,0.8130954]
[1717378713789,2.2561,164.0,163.96,0.8130954]
[1717378714493,6.0879,164.03,163.96,0.8130954]
[1717378714494,2.2562,163.99,163.96,0.8130954]
[1717378715400,2.256,164.01,163.96,0.8130954]
[1717378715696,2.2561,164.0,163.96,0.8130954]
[1717378716095,2.2565,163.97,163.96,0.8130954]
[1717378716479,2.2564,163.98,163.96,0.8130954]
[1717378716836,2.2562,163.99,163.96,0.8130954]
[1717378717114,2.2561,164.0,163.96,0.8130954]
[1717378718595,2.2562,163.99,163.96,0.8130954]
[1717378718799,2.2561,164.0,163.96,0.8130954]
[1717378721188,2.258,163.86,163.83,0.3302968]
[1717378721388,2.2579,163.87,163.83,0.3302968]
[1717378721597,2.2577,163.89,163.83,60.3302968]
[1717378721787,2.2578,163.88,163.83,66.5132968]
[1717378721994,2.2578,163.88,163.83,6.5132968]
[1717378722199,2.2578,163.87,163.83,0.3302968]
[1717378722784,2.2577,163.88,163.83,0.3302968]
[1717378723291,2.2578,163.87,163.83,0.3302968]
[1717378723482,2.2577,163.88,163.83,0.3302968]
[1717378724399,2.2575,163.9,163.85,66.2461]
[1717378724900,2.2575,163.9,163.85,6.2461]
[1717378725896,2.2576,163.89,163.85,6.2461]
[1717378726302,2.2577,163.89,163.83,0.3302968]
[1717378726504,2.2577,163.88,163.83,30.3302968]
[1717378727293,2.2577,163.88,163.83,0.3302968]
[1717378728594,2.2576,163.89,163.84,6.3395]
[1717378728912,2.2575,163.9,163.84,66.3314]
[1717378729595,4.514,163.94,163.84,6.3314]
[1717378729596,2.2576,163.89,163.84,6.3314]
[1717378730123,2.2578,163.88,163.84,6.3314]
[1717378730789,2.2576,163.89,163.84,6.3314]
[1717378731207,2.2576,163.89,163.85,36.44]
[1717378731719,2.2576,163.89,163.83,2.9286968]
[1717378731898,2.2576,163.89,163.84,66.44]
[1717378733635,2.2576,163.89,163.84,68.6982]
[1717378735000,2.2576,163.89,163.84,66.44]
[1717378738712,2.2576,163.89,163.83,39.0285968]
[1717378739009,2.2576,163.89,163.84,2.2582]
[1717378739399,2.2575,163.9,163.84,2.2582]
[1717378740326,2.2576,163.89,163.84,36.44]
[1717378740625,6.7714,163.93,163.83,0.3302968]
[1717378740836,6.7717,163.92,163.83,0.3302968]
[1717378741138,2.2578,163.88,163.83,0.3302968]
[1717378741719,2.2579,163.87,163.83,0.3302968]
[1717378742125,2.2577,163.88,163.83,2.5886968]
[1717378742321,6.5448,163.91,163.83,0.3302968]
[1717378742495,2.2577,163.88,163.83,0.3302968]
[1717378742692,2.2577,163.88,163.83,2.5886968]
[1717378743431,2.2577,163.89,163.83,2.5886968]
[1717378743722,2.2575,163.9,163.84,38.8682]
[1717378743912,2.2575,163.9,163.85,68.6981]
[1717378744124,2.2575,163.9,163.85,66.44]
[1717378744297,2.2576,163.89,163.85,66.44]
[1717378745117,2.2574,163.9,163.85,68.6981]
[1717378745512,2.2574,163.9,163.84,2.2582]
[1717378745853,6.0272,163.94,163.87,36.44]
[1717378746135,2.2571,163.92,163.87,38.6978]
[1717378746424,2.2573,163.91,163.87,36.44]
[1717378747135,2.2572,163.92,163.87,38.6978]
[1717378747509,2.2572,163.92,163.88,2.2577]
[1717378747813,2.2571,163.93,163.88,2.2577]
[1717378748222,2.2572,163.92,163.87,38.6978]
[1717378748435,2.2572,163.92,163.87,45.0635]
[1717378748612,2.2572,163.92,163.87,38.6978]